Cogmind - Beta 14 @@@ ROGUE MODE // 2024.09.18 @ 16:59:54 Player: Dull Result: Destroyed by JQ-8Q6(j) with Overtuned Pulse Rifle Performance ------------- Evolutions (0) 0 Regions Visited (3) 600 Robots Destroyed (47) 235 Value Destroyed (1301) 1301 Prototype IDs (13) 260 Alien Tech Used (0) 0 Bonus (2008) 2008 TOTAL SCORE: 4404 Bonus ------- High Alert Combat Kills 8 Delivered SUBCON Basin 2000 Cogmind --------- Core Integrity 0/250 Matter 298/300 Energy 155/180 System Corruption 0% Temperature Critical (556) Movement Core (3600) Ox71 Location -7/Recycling Parts ------- > --- POWER (1) -------- Meta Core > --- PROPULSION (2) --- Light Treads > --- UTILITY (2+1) ---- Humpback Tractor Beam (+) > --- WEAPON (2) ------- Subdweller Machine Gun Battle Cannon > --- INVENTORY (35) --- Disposable Heat Sink Small Storage Unit Subdweller Optics Scrap Shield Scrap Shield Tech Extrapolator Rainbow Chip Riot Gun Riot Gun Subdweller Laser Battle Rifle Battle Rifle Subdweller Shrapnel Launcher Dirty Datajack (20) Makeshift Sword Scrap Shield Fragment (50) Peak State ------------ > --- POWER ------------ Meta Core > --- PROPULSION ------- Spiked Treads Spiked Treads > --- UTILITY ---------- Humpback Tractor Beam > --- WEAPON ----------- Subdweller Laser Makeshift Shrapnel Gun Battle Cannon > --- INVENTORY -------- Light Treads Disposable Heat Sink Small Storage Unit Subdweller Optics Scrap Shield Scrap Shield Rainbow Chip Riot Gun Riot Gun Subdweller Laser Battle Rifle Battle Rifle Subdweller Machine Gun Subdweller Machine Gun Subdweller Shrapnel Launcher Dirty Datajack Makeshift Sword Scrap Shield Fragment SUBCON Basin [Rating: 51] Favorites ----------- Power Meta Core Engine Ion Engine Power Core Meta Core Propulsion Spiked Treads Treads Spiked Treads Leg Aluminum Leg Wheel Subdweller Monowheel Utility Tractor Beam Device Tractor Beam Storage Humpback Protection Scrap Shield Weapon Subdweller Laser Energy Gun Subdweller Laser Ballistic Gun Makeshift Shrapnel Gun Ballistic Cannon Battle Cannon Launcher Grenade Launcher Build | -11 -10 -10 -7 ------- Run | Yrd Mat Sub Rec Slots Evolved . | . . . . Power . | . . . . Propulsion . | . . . . Utility . | . . . . Weapon . | . . . . Parts Attached 42 | 3 15 21 3 Power 4 | . 3 1 . Engine 3 | . 3 . . Core 1 | . . 1 . Reactor . | . . . . Propulsion 17 | 2 5 9 1 Treads 13 | 2 5 5 1 Leg . | . . . . Wheel 4 | . . 4 . Hover . | . . . . Flight . | . . . . Utility 9 | 1 4 4 . Device 4 | 1 2 1 . Storage 2 | . 1 1 . Processor . | . . . . Hackware . | . . . . Protection 3 | . 1 2 . Artifact . | . . . . Weapon 12 | . 3 7 2 Energy Gun 4 | . 2 2 . Energy Cannon . | . . . . Ballistic Gun 6 | . . 4 2 Ballistic Cannon 1 | . . 1 . Launcher 1 | . 1 . . Special Weapon . | . . . . Impact Weapon . | . . . . Slashing Weapon . | . . . . Piercing Weapon . | . . . . Special Melee Weapon . | . . . . Unidentified Prototypes 1 | . . 1 . Parts Lost 7 | . 1 1 5 Power . | . . . . Propulsion 3 | . . 1 2 Utility 1 | . 1 . . Weapon 3 | . . . 3 Highest Loss Streak 5 | . 1 1 5 To Critical Strikes . | . . . . Average Slot Usage (%) 88 | . 99 85 87 Engine 3 | . 13 3 . Core 7 | . . 7 11 Treads 22 | . 27 21 21 Wheel 1 | . . 2 . Device 8 | . 12 7 11 Storage 8 | . 14 4 11 Protection 3 | . 1 6 . Energy Gun 11 | . 18 10 10 Ballistic Gun 10 | . 7 11 11 Ballistic Cannon 8 | . . 9 11 Peak Build Rating 51 | 9 10 51 51 Average Rating 31 | 6 8 28 47 On Entrance 18 | 6 9 8 51 Naked Turns . | . . . . Heaviest Build 216 | 12 19 216 216 Greatest Support 40 | 40 40 40 40 Greatest Overweight (x) 11 | . . 11 5 Average Overweight (x) 1 | . . 1 5 Largest Inventory Capacity 35 | 8 10 35 35 Average Capacity 22 | 8 9 18 35 Most Carried 35 | 7 10 35 35 Average Carried 17 | 6 8 11 32 Final Capacity 35 | 8 10 35 35 Final Carried 35 | 3 9 35 18 Class Distribution -------------------- 55% | Hauler-Gunner 27% | Mutant 7% | Subdweller-Tank 5% | Derelict-Tank Dominant Class ---------------- Mutant | -10/Materials Hauler-Gunner | -10/Subcaves Hauler-Gunner | -7/Recycling Resources | -11 -10 -10 -7 ----------- Run | Yrd Mat Sub Rec Matter Collected 1426 | 240 241 815 130 Remotely 340 | . . 210 130 Salvage Created 1420 | 176 639 416 189 Parts 100 | 16 41 29 14 Haulers Intercepted 2 | . 2 . . Recyclers Shooed 1 | . 1 . . Parts Field Recycled . | . . . . Retrieved Matter . | . . . . Parts Self-Destructed 20 | . . 20 . Prevented . | . . . . Kills | -11 -10 -10 -7 ------- Run | Yrd Mat Sub Rec Combat Hostiles Destroyed 36 | . 19 15 2 Guns 23 | . 13 8 2 Cannons 7 | . . 7 . AOE 6 | . 6 . . Classes Destroyed 10 | 2 4 2 2 Tunneler 5 | 5 . . . Hauler 2 | . 2 . . Recycler 1 | 1 . . . Watcher 3 | . 3 . . Swarmer 7 | . 6 1 . Grunt 14 | . 13 1 . Sentry 1 | . . 1 . Subdweller 12 | . . 12 . Scientist 2 | . . . 2 Scrapper 2 | . . . 2 Best Kill Streak 5 | 4 5 2 4 Combat Bots Only 4 | . 4 2 2 Max Kills in Single Turn 1 | 1 1 1 1 Gunslinging . | . . . . Exploded 1 | . 1 . . Melee . | . . . . Uniques/NPCs Destroyed . | . . . . Combat | -11 -10 -10 -7 -------- Run | Yrd Mat Sub Rec Hostile Shots Fired 230 | . 94 105 31 Missed 69 | . 25 43 1 Damage Taken 2161 | . 679 836 646 Core 258 | . 147 23 88 Absorbed by Shields . | . . . . Regen/Repaired (Parts) 39 | . 39 . . Core Remaining (%) 100 | 100 . . . Volleys Fired 181 | 11 76 82 12 Largest 3 | 2 2 3 3 Hottest 129 | 70 90 123 129 Shots Fired 340 | 22 139 156 23 Gun 242 | 22 126 81 13 Cannon 85 | . . 75 10 Launcher 13 | . 13 . . Special . | . . . . Kinetic 188 | 11 52 107 18 Thermal 139 | 11 74 49 5 Explosive 13 | . 13 . . Electromagnetic . | . . . . Robot Hit Streak 13 | 5 13 10 3 Robot Miss Streak 5 | 1 5 3 3 Penetration Max . | . . . . Secondary Targets 2 | . 2 . . Max Gunslinging Chain 1 | . 1 . . Shots Hit Robots 164 | 17 71 65 11 Core Hits 92 | 9 44 32 7 Critical Kills . | . . . . Critical Parts Destroyed . | . . . . Critical Strikes 6 | . 4 2 . Burn 4 | . 4 . . Blast 2 | . . 2 . Melee Attacks . | . . . . Impact . | . . . . Slashing . | . . . . Piercing . | . . . . Sneak Attacks . | . . . . Combat Hostiles . | . . . . Follow-up Attacks . | . . . . Damage Inflicted 3275 | 190 1519 1312 254 Guns 2016 | 190 773 880 173 Cannons 513 | . . 432 81 Explosions 736 | . 736 . . Melee . | . . . . Ramming 10 | . 10 . . Kinetic 1271 | 77 200 820 174 Thermal 1258 | 113 573 492 80 Explosive 736 | . 736 . . Electromagnetic . | . . . . Impact . | . . . . Slashing . | . . . . Piercing . | . . . . Highest Corruption . | . . . . Average Corruption . | . . . . Corruption Purged . | . . . . Corruption Blocked . | . . . . Overload Shots . | . . . . Overflow Damage 3 | . 3 . . Projectiles . | . . . . Explosions 3 | . 3 . . Melee . | . . . . Knockbacks 7 | . . 6 1 Impact . | . . . . Kinetic 7 | . . 6 1 Secondary . | . . . . Self-Inflicted Damage . | . . . . Shots . | . . . . Rammed 2 | . 2 . . Targets Rammed 2 | . 2 . . Kicked . | . . . . Crushed . | . . . . Highest Temperature 628 | 110 166 9 628 Average Temperature 79 | 48 38 2 458 Received Heat Transfer 902 | . 252 165 485 Effects 17 | . . . 17 Shutdowns 3 | . . . 3 Energy Bleed 1 | . . . 1 Interference 3 | . . . 3 Matter Decay 1 | . . . 1 Short Circuit 3 | . . . 3 Damage (minor) 3 | . . . 3 Damage (major) 3 | . . . 3 Siege Activations . | . . . . Robots Corrupted . | . . . . Combat Hostiles . | . . . . Parts Fried . | . . . . Impact Corruptions . | . . . . Robots Melted . | . . . . Combat Hostiles . | . . . . Parts Melted 4 | . 4 . . Heat Transferred 2888 | 333 1915 600 40 Parts Sabotaged . | . . . . Parts Stolen . | . . . . Parts Stripped . | . . . . Power Chain Reactions . | . . . . Alert | -11 -10 -10 -7 ------- Run | Yrd Mat Sub Rec Peak Influence 427 | 30 427 . 16 Initial 19 | . 19 . . Average 63 | 17 216 . 1 Maximum Alert Level 2 | . 2 . . Low Security (%) 82 | 100 38 . 100 Level 1 14 | . 49 . . Level 2 3 | . 12 . . Level 3 . | . . . . Level 4 . | . . . . Level 5 . | . . . . High Security . | . . . . Max Security . | . . . . Squads Dispatched 4 | . 4 . . Investigation 2 | . 2 . . Extermination . | . . . . Reinforcement 2 | . 2 . . Assault . | . . . . Garrison . | . . . . Intercept . | . . . . Searches Triggered . | . . . . Construction Impeded . | . . . . Haulers Reinforced . | . . . . Active Scanning Responses . | . . . . Cargo Convoy Interrupts . | . . . . Stealth | -11 -10 -10 -7 --------- Run | Yrd Mat Sub Rec Distress Signals 2 | . 2 . . Communications Jammed . | . . . . Distress Signals . | . . . . Times Spotted 54 | . 30 21 3 Peak Tracking Total 6 | . 4 6 3 Tactical Retreats 4 | . 2 2 . Traps | -11 -10 -10 -7 ------- Run | Yrd Mat Sub Rec Traps Triggered 7 | . 5 2 . Indirectly . | . . . . Trap Hack Attempts . | . . . . Triggered . | . . . . Disarmed . | . . . . Reprogrammed . | . . . . Reused . | . . . . Traps Extracted . | . . . . Installed . | . . . . Triggered . | . . . . Machines | -11 -10 -10 -7 ---------- Run | Yrd Mat Sub Rec Machines Disabled 2 | . . 1 1 Max in Single Turn 1 | . . 1 1 Machines Repaired . | . . . . Machines Dismantled . | . . . . Machines Sabotaged . | . . . . Overloaded Fab Kills . | . . . . Hacking | -11 -10 -10 -7 --------- Run | Yrd Mat Sub Rec Machines Accessed 20 | . 8 3 9 Terminals 12 | . 6 . 6 Fabricators . | . . . . Repair Stations 1 | . 1 . . Recycling Units 2 | . 1 . 1 Scanalyzers . | . . . . Garrison Access . | . . . . Total Hacks 71 | . 27 4 40 Successful 45 | . 13 4 28 Failed 26 | . 14 . 12 Catastrophic 4 | . 2 . 2 Database Lockouts . | . . . . Manual 29 | . 23 . 6 Terminals 34 | . 21 . 13 Fabricators . | . . . . Repair Stations 3 | . 3 . . Recycling Units 6 | . 3 . 3 Scanalyzers . | . . . . Garrison Access . | . . . . Terminal Hacks 35 | . 3 4 28 Record 25 | . . 1 24 Robot Analysis 3 | . 2 . 1 Prototype ID Bank 1 | . . . 1 Open Door 1 | . . 1 . Branch Access Points 1 | . . . 1 Recall Reinforcements 1 | . 1 . . Zone Layout 1 | . . . 1 Derelict Proto ID Bank 1 | . . 1 . Release Object 1 | . . 1 . Fabricator Hacks . | . . . . Repair Station Hacks 2 | . 2 . . Scan Component 1 | . 1 . . Repair 1 | . 1 . . Recycling Unit Hacks . | . . . . Scanalyzer . | . . . . Garrison Access Hacks . | . . . . Unauthorized Hacks 8 | . 8 . . Terminals 5 | . 5 . . Botnet 5 | . 5 . . Fabricators . | . . . . Repair Stations . | . . . . Recycling Units 3 | . 3 . . Monitor 1 | . 1 . . Reject 1 | . 1 . . Mask 1 | . 1 . . Scanalyzers . | . . . . Garrison Access . | . . . . Data Cores Recovered . | . . . . Used . | . . . . Hacking Detections 13 | . 7 . 6 Full Trace Events 6 | . 5 . 1 Feedback Events . | . . . . Feedback Blocked . | . . . . Robot Schematics Acquired . | . . . . Robots Built . | . . . . Authchips . | . . . . Time . | . . . . Total Robot Build Rating . | . . . . Part Schematics Acquired . | . . . . Parts Built . | . . . . Authchips . | . . . . Time . | . . . . Total Part Build Rating . | . . . . Parts Repaired 1 | . 1 . . Time 26 | . 26 . . Parts Recycled . | . . . . Recycled Matter . | . . . . Retrieved Matter . | . . . . Retrieved Components . | . . . . Parts Scanalyzed . | . . . . Part Schematics Acquired . | . . . . Parts Damaged . | . . . . Bothacking | -11 -10 -10 -7 ------------ Run | Yrd Mat Sub Rec Used RIF Installer . | . . . . Robots Hacked . | . . . . Non-combat . | . . . . Combat . | . . . . Robot Hacks Applied . | . . . . Relay Couplers Released . | . . . . Fabnet Peak Effective % . | . . . . Robots Rewired . | . . . . Allies Hacked . | . . . . Hacks Repelled . | . . . . Allies | -11 -10 -10 -7 -------- Run | Yrd Mat Sub Rec Total Allies . | . . . . Largest Group . | . . . . Highest-Rated Group . | . . . . Highest-Rated Ally . | . . . . Total Orders . | . . . . Ally Attacks . | . . . . Total Damage . | . . . . Kills . | . . . . Allies Corrupted . | . . . . Allies Melted . | . . . . Intel | -11 -10 -10 -7 ------- Run | Yrd Mat Sub Rec Robot Analysis Total 3 | . 2 . 1 Derelict Logs Recovered 2 | . . 2 . Drone Launches . | . . . . Drone Recoveries . | . . . . Exploration | -11 -10 -10 -7 ------------- Run | Yrd Mat Sub Rec Turns Passed 13700 | 113 1775 7559 4253 Spaces Moved 4615 | 42 913 3024 636 Core 2 | . . 2 . Treads 3622 | 4 913 2069 636 Legs 38 | 38 . . . Wheels 953 | . . 953 . Hover . | . . . . Flight . | . . . . Fastest Speed 110 | 120 160 110 660 Average Speed 278 | 123 160 236 660 Slowest Speed 660 | 160 160 660 660 Overloaded Moves . | . . . . Propulsion Burnouts . | . . . . Robots Hopped . | . . . . Cave-ins Triggered . | . . . . Exploration Rate (%) 74 | 3 100 95 99 Regions Visited 3 Branch Regions 2 Pre-discovered Areas 1 | . . 1 . Known Exits Taken . | . . . . Unknown Exits Taken 3 | 1 1 1 . Scrap Searched 10 | . . 10 . Spaces Dug 14 | . 10 4 . Terrain Destroyed 68 | . 63 5 . Melee . | . . . . Projectile 5 | . . 5 . AOE 63 | . 63 . . Terrain Rammed . | . . . . Walls Destroyed . | . . . . Machines Disabled . | . . . . Actions | -11 -10 -10 -7 --------- Run | Yrd Mat Sub Rec Total 5141 | 84 1094 3289 674 Wait 231 | 24 74 113 20 Move 4612 | 41 912 3023 636 Hop . | . . . . Pick Up 33 | 1 10 21 1 Fast Attach 16 | 1 7 8 . Attach 8 | 1 1 3 3 Detach . | . . . . Swap 18 | 1 7 10 . Drop 28 | 4 5 18 1 Fire 181 | 11 76 82 12 Melee . | . . . . Ram . | . . . . Kick . | . . . . Crush 2 | . 2 . . Escape Stasis . | . . . . Rewire . | . . . . Trap . | . . . . Miscellaneous 12 | . . 11 1 Route ------- -11/Scrapyard -10/Materials (discovered 5 exits: [*Mat x3] / [*Min] / *Sub) -10/Subcaves (discovered 3 exits: [*Mat x2] / *Rec) -7/Recycling (discovered 1 exit: [*Fac]) History --------- Turn | Location | Event 1 | -11/Scrapyard | Discovered new exit (range 3) 114 | -11/Scrapyard | Entered Materials 317 | -10/Materials | Build established: Mutant 339 | -10/Materials | Discovered new exit (range 9) 566 | -10/Materials | Discovered new exit (range 12) 946 | -10/Materials | Repaired Lgt. Treads 1039 | -10/Materials | Core integrity fell below 50% 1083 | -10/Materials | Discovered new exit (range 12) 1304 | -10/Materials | Discovered new exit (range 11) 1862 | -10/Materials | Discovered new exit (range 13) 1889 | -10/Materials | Entered Subcaves 2020 | -10/Subcaves | Learned location of Zion (-7) 2613 | -10/Subcaves | Shifting Twisted Machinery released Piercing Trap 2614 | -10/Subcaves | Shifting Twisted Machinery released Sub. Laser 2801 | -10/Subcaves | Discovered new exit (range 14) 3042 | -10/Subcaves | A swath of the cavern ceiling suddenly collapsed 3632 | -10/Subcaves | Shifting Twisted Machinery released Battle Rifle 3893 | -10/Subcaves | Shifting Twisted Machinery released Sub. Monowheel 3943 | -10/Subcaves | A Subdweller sparked back to life 3943 | -10/Subcaves | A Subdweller sparked back to life 3943 | -10/Subcaves | A Subdweller sparked back to life 3977 | -10/Subcaves | Found Prototype Power Core 3977 | -10/Subcaves | Identified Meta Core 3978 | -10/Subcaves | Attached Meta Core, gained temporary slots: Propulsion, Utility, Weapon 3992 | -10/Subcaves | Discovered new exit (range 15) 4187 | -10/Subcaves | Visited 4L-MR0's lab 4194 | -10/Subcaves | Learned Materials garrison access intel 4205 | -10/Subcaves | Found Rainbow Chip 4278 | -10/Subcaves | Build established: Subdweller-Tank 4360 | -10/Subcaves | Discovered new exit (range 16) 4378 | -10/Subcaves | Disturbed a concealed Subdweller 4445 | -10/Subcaves | Shifting Twisted Machinery released Humpback 4447 | -10/Subcaves | Shifting Twisted Machinery released Multitool 5009 | -10/Subcaves | A swath of the cavern ceiling suddenly collapsed 5296 | -10/Subcaves | Build established: Tank 5649 | -10/Subcaves | Build established: Derelict-Tank 6343 | -10/Subcaves | Build established: Hauler-Gunner 8638 | -10/Subcaves | Found SUBCON Basin 9448 | -10/Subcaves | Entered Recycling 12191 | -7/Recycling | Discovered new exit (range 16) 12739 | -7/Recycling | Scanned before Scraplab entrance 12845 | -7/Recycling | Entered Scraplab 13011 | -7/Recycling | Discovered new exit (range 2) 13665 | -7/Recycling | Released subatomizers from SUBCON Basin 13665 | -7/Recycling | Angered Scraplab inhabitants 13677 | -7/Recycling | Core integrity fell below 20% 13701 | -7/Recycling | Destroyed by JQ-8Q6(j) with Overtuned Pulse Rifle Last Messages --------------- 13689_ Broken Sub. Laser destroyed. 13690_ Spk. Treads broken. 13690_ Overheating: Short circuit. 13690_ Temporary Weapon slot lost. 13691_ Overheating: Tractor Beam damaged (-8). 13692_ JQ-8Q6(j) heat short circuits Ovr. Titanium Leg. 13694_ Overheating: System interference. 13694_ Battle Cannon temporarily disabled. 13694_ Critical hit (Burn: +50). 13695_ Power failure, Meta Core shutdown. 13695_ Broken Spk. Treads destroyed. 13696_ Lgt. Treads broken. 13696_ Overheating: Short circuit. 13697_ Sub. Machine Gun destroyed. 13698_ Overheating: Matter decay (-42). 13699_ Acquired 56 matter. 13699_ Acquired 4 matter. 13699_ Acquired 7 matter. 13699_ Overheating: Energy bleed (-18). 13700_ Acquired 2 matter. Map ----- +----------------------------------------------------+ | """ # # ""T"" #????????????? | | # # """ #????????????? | | # ###########????????????? | | ##### #??????????????????????? | | ????# #??????????????????????? | | ##### #??????????????????????? | | # #??????????????????????? | | # #??????????????????????? | | + #???????######?????????? | | # #???????# #?????????? | | # #???????# #??###????? | | # #???##### #### ##???? | | # #?### + # #???? | | "T" # #?#** ### ##### #???? | | """ # #?# #?# #???#%#???? | | ##### #?#** #?# #???#%#???? | | ????# #?### #?######???#j#???? | | ????# ##### #??????#####/####? | | ????# #??????#" != "#? | | ????# #??????#"&! * ""#? | | ????# #??????#" =[ "#? | | ##### #??????#"" X"#? | | # """ #??????#"& "#? | | "" # """ #??????#" = ""#? | | Y" # """ #??????#"X ! "#? | | "" # #??????# !@ ###? | | # #??????# "" !#<#? | | # #??????# """ !%!#? | | + ###T###??????##########? | | # #?###??????????????????? | | # #??????????????????????? | | # ##########?????????????? | | # # #?????????????? | | # # #?????????????? | | # # #?????????????? | | ##### # """ #?????????????? | | ??### # """ #?????????????? | | ??#"" # """ #?????????????? | | ??#"Y + """ #?????????????? | | ??#"" # """ #?????????????? | | ??### + #?????????????? | | ##### ##########?????????????? | | #??????????????????????? | | ######+#######?????????????????? | | # #?????????????????? | | # #?????????????????? | | # ##????????????????? | | # #????????????????? | | + ##????????????????? | | # #?????????????????? | +----------------------------------------------------+ Best States ------------- Heat Dissipation 35 Energy Generation 17 Energy Capacity 250 Matter Stores 300 Matter Capacity 300 Sight Range 16 Terrain Scan Range 16 Terrain Scan Density 10 Armor Coverage 800 Core Shielding 20 Evasion (%) 55 Recoil Reduction 2 Item Schematics ----------------- None Robot Schematics ------------------ None Fabricated ------------ Nothing Alien Tech Used ----------------- None Achievements -------------- None Challenges ------------ None Game ------ Seed ForceAuthchipMeganuke Manual? 0 Play Time 00:43:30 Cumulative 110.7 hours Start 2024.09.18 @ 16:07:41 End 2024.09.18 @ 16:59:54 Sessions 1 Manual Loads 0 Difficulty Rogue Special Mode None Game No. 155 Rogue 155 Adventurer 0 Explorer 0 Win Type - Total 1 Types 1/0/0/0/0/0/0/0/0 Lore% 24 Gallery% 56 Achievement% 44 Wizard Run 0 Options --------- Layout 0 ASCII 0 Keyboard 0 Movement Mouse Keybinds 1 Fullscreen 1 Font 18/TerminusBold Map View 76x50 Zoom Use 0% Tactical HUD 1 Map Filters NONE Filters NONE Steam 1 RUN: 089da2fd-1ac8-47c6-80fc-f007c431cea0